{"text_format":"1","workbook":"xlsx","n_sheets":13,"sheets":["Einführung","1.1 Lieferung","1.21 Bauhauptgewerbe","1.22 Baunebengewerbe","1.3 Dienstleistung","1.4 Reiner Handel","1.5 IT-Leistungen","Beispiel","2 Stammdaten","commentindicator","Formular 1 Lang","Formular 2 Kurz","land"],"not_rendered":{"charts":0,"images":19,"macros":1,"external_links":2,"defined_names":4,"comments":7,"pivot_tables":0},"unopened":[],"bounds":{"document_bytes":16777216,"sheet_cells":100000,"rows_first":2000,"rows_last":500,"rows_between":2000,"halvings":0,"cell_chars":16384,"cell_head_chars":4096},"cells_cut":0,"cells_raw":0,"read":"whole","date_system":"1900"}

{"sheet":"Einführung","index":0,"n_rows":5,"n_cols":2,"rows_kept":5,"cut":false,"hidden":false,"merged":[[4,1,4,12],[1,0,1,12]]}
[]
["Preisniveaurechner zu Art. 29 BöB, Zuschlagskriterien"]
[]
[]
[null,"Art. 29 Absatz 1 des Bundesgesetzes über das Beschaffungswesens (BöB) sieht vor, dass der Preisniveauindex eines Landes, in dem eine Leistung erbracht wird, bei der Vergabe eines Auftrags berücksichtigt wird. Die Idee: Die Herstellung eines Gutes in einem Land mit hohem Preisniveau ist teurer als in einem Land mit tieferem Preisniveau. Die Herstellkosten sollen durch Berücksichtigung der Preisniveaus vergleichbar gemacht werden, volkwirtschaftliche Preisniveauunterschiede neutralisiert werden. \n\nMit dem vorliegenden \"Preisniveaurechner\" wird das Herkunftsland einer Leistung bestimmt. Die Basis bilden die Herstellkosten: Wo wurde die offerierte Leistung (Produkt oder Dienstleistung) bzw. dessen Komponenten, welche in das Endprodukt eingehen, erstellt? Die Gliederung der Herstellkosten orientiert sich an der in der Betriebswirtschaftslehre für die Preiskalkulation gängigem Schema. Bitte beachten Sie dabei auch die Kommentare/ Hilfestellungen bei einzelnen Feldern in der Eingabemaske - mit dem Cursor über  die Zelle mit dem Symbol             fahren, links vom Symbol.\n\nVorgehen:\n●  Füllen Sie die hellbau markierten Zellen möglichst vollständig aus: Beginnen Sie mit \"Angaben zum Angebot\". Drücken Sie dann \"Tabelle vollständig ausgefüllt\" und\n     \"Zur nächsten Tabelle\".\n●  Wenn Sie einen Kostenblock (bspw. Material oder Fertigungskosten) vollständig erfasst haben, drücken Sie auf \"Tabelle vollständig ausgefüllt\" beim \n     entsprechenden Block und \"Zur nächsten Tabelle\". Wiederholen Sie diese Schritte für alle Kostenblöcke.\n●  Wenn Sie alle Eingaben gemacht haben, drücken Sie beim letzten Kostenblock auf \"Zu den Ergebnissen\" und drücken Sie dort den Button \"Ergebnisse\n     Validieren\", damit die Berechnungen aktualisiert werden. \n●  Anschliessend können Sie mit  Klick auf die Buttons \"Langversion, Formular 1\" und \"Kurzversion, Formular 2\" die Ergebnisse ausdrucken und unterschreiben. \n    Der Beschaffungsstelle geben Sie nur die Kurzversion des Formulars ab. Die Beschaffungsstelle behält sich aber vor, in Zweifelsfällen die Langversion einzuverlangen. \n    Machen Sie Ihre Eingaben also bitte vollständig und wahrheitsgetreu. Mit der Einreichung des Kurzformulars bestätigen Sie dies auch.\n\nZum Starten der Eingabe klicken Sie bitte auf den nachfolgenden Button. Vielen Dank."]

{"sheet":"1.1 Lieferung","index":1,"n_rows":105,"n_cols":26,"rows_kept":105,"cut":false,"hidden":true,"merged":[[46,0,46,1]]}
[]
["Selbstdeklaration Herkunft nach Art. 29 Abs. 1 BöB"]
["(Lieferung)"]
[]
[]
[]
["ERGEBNISSE"]
[]
["Angebotspreis: \nWährung und Betrag",{"$f":"B39","v":"CHF"},{"$f":"B38","v":0}]
["Länderanteile Herstellkosten in %",null,null,"Total"]
[]
["1. Preis, aufgeschlüsselt nach Länderanteilen"]
["a. Preisniveau index  BIP Land X"]
["b.  Preisniveau index BIP Schweiz"]
["c.  Umrechnungsfaktor (b:a)"]
["2. Preisniveaubereinigter Preis  (1*c)  '   "]
[]
[]
["ERGEBNISSE DRUCKEN "]
[]
[null,"Vor dem Drucken Anklicken zum Aktualisieren der Berechnung"]
[]
[null,"All Ihre gemachten Eingaben erscheinen auf dem Formular.",null," "]
[]
[null,"Nur der Ergebnisblock oben wird in das Formular übernommen."]
[]
[]
[]
[]
[]
[]
["ANGABEN ZUM ANGEBOT "]
[]
["Anbieter"]
["Kontaktperson"]
["Telefon"]
["E-Mail"]
["Angebotspreis"]
["Währung, in der Sie das Angebot eingereicht haben","CHF"]
[]
["ERMITTLUNG HERKUNFT",null,null,null,null,null,null,null,null,null,null,null,null,null,null,null,null,null,null,null,null,null,null,null,null,"ERMITTLUNG HERKUNFT Top Result Title"]
[]
[null,null,"TOTAL"]
[null,null,{"$f":"C$94/$C$94","v":{"$error":"#DIV/0!"}}]
["Wichtiger Hinweis:"]
["Bitte achten Sie darauf, dass Sie alle Eingaben in der gleichen Währung machen."]
["Das kann in der Währung sein, in der Sie das Angebot eingereicht haben, oder aber auch in der Währung, in der Sie Ihren Rechnungsabschluss erstellen."]
["Material-Einzelkosten","Bezeichnung","Betrag","Herkunft",null,null,null,null,null,null,null,null,null,null,null,null,null,null,null,null,null,null,null,null,null,"Material-Einzelkosten header 1.1.1"]
["L-M1"]
["L-M2"]
["L-M3"]
[]
[null,"Material-Einzelkosten",{"$f":"SUM(C49:C52)","v":0},null,null,null,null,null,{"$f":"SUM(E53:H53)","v":0},null,null,null,null,null,null,null,null,null,null,null,null,null,null,null,null,"Material-Einzelkosten footer 1.1.1"]
[null,"Länderanteile in Prozent",null,null,null,null,null,null,{"$f":"SUM(E54:H54)","v":0}]
[null,"Länderanteile in Prozent aggregiert",null,null,null,null,null,null,{"$f":"SUM(E55:H55)","v":0}]
[]
["- Material-Gemeinkosten","Bezeichnung","in % der Materialkosten","Herkunft",null,null,null,null,null,null,null,null,null,null,null,null,null,null,null,null,null,null,null,null,null,"- Material-Gemeinkosten header 1.1.2"]
["L-MGK1"]
["L-MGK2"]
["L-MGK3"]
[]
[null,"Material-Gemeinkosten",{"$f":"SUM(E62:H62)","v":0},null,null,null,null,null,{"$f":"SUM(E62:H62)","v":0},null,null,null,null,null,null,null,null,null,null,null,null,null,null,null,null,"Material-Gemeinkosten footer 1.1.2"]
[null,"Länderanteile in Prozent",null,null,null,null,null,null,{"$f":"SUM(E63:H63)","v":0}]
[null,"Länderanteile in Prozent aggregiert",null,null,null,null,null,null,{"$f":"SUM(E64:H64)","v":0}]
[]
["Fertigungs-Einzelkosten","Bezeichnung","Betrag","Herkunft",null,null,null,null,null,null,"`",null,null,null,null,null,null,null,null,null,null,null,null,null,null,"Fertigungs-Einzelkosten header 1.1.3"]
["L-LK1"]
["L-LK2"]
["L-LK3"]
[]
[null,"Fertigungs-Einzelkosten",{"$f":"SUM(C67:C70)","v":0},null,null,null,null,null,{"$f":"SUM(E71:H71)","v":0},null,null,null,null,null,null,null,null,null,null,null,null,null,null,null,null,"Fertigungs-Einzelkosten footer 1.1.3"]
[null,"Länderanteile in Prozent",null,null,null,null,null,null,{"$f":"SUM(E72:H72)","v":0}]
[null,"Länderanteile in Prozent aggregiert",null,null,null,null,null,null,{"$f":"SUM(E73:H73)","v":0}]
[]
["-Fertigungs-Gemeinkosten","Bezeichnung","In Prozent der  Fertigungskosten","Herkunft",null,null,null,null,null,null,null,null,null,null,null,null,null,null,null,null,null,null,null,null,null,"-Fertigungs-Gemeinkosten header 1.1.4"]
["L-FGK1"]
["L-FGK2"]
["L-FGK3"]
[]
[null,"Fertigungs-Gemeinkosten",{"$f":"SUM(E80:H80)","v":0},null,null,null,null,null,{"$f":"SUM(E80:H80)","v":0},null,null,null,null,null,null,null,null,null,null,null,null,null,null,null,null,"Fertigungs-Gemeinkosten footer 1.1.4"]
[null,"Länderanteile in Prozent",null,null,null,null,null,null,{"$f":"SUM(E81:H81)","v":0}]
[null,"Länderanteile in Prozent aggregiert",null,null,null,null,null,null,{"$f":"SUM(E82:H82)","v":0}]
[]
["Fremdleistungen ","Bezeichnung","Betrag","Herkunft",null,null,null,null,null,null,null,null,null,null,null,null,null,null,null,null,null,null,null,null,null,"Fremdleistungen und Lizenzen header 1.1.5"]
["L-F1"]
["L-F2"]
["L-F3"]
[]
[null,"Kosten Fremdleistungen und Lizenzen",{"$f":"SUM(C85:C88)","v":0},null,null,null,null,null,null,null,null,null,null,null,null,null,null,null,null,null,null,null,null,null,null,"Kosten footer 1.1.5"]
[null,"Länderanteile in Prozent"]
[null,"Länderanteile in Prozent aggregiert",null,null,null,null,null,null,{"$f":"SUM(E91:H91)","v":0}]
[]
["HERSTELLKOSTEN",null,"TOTAL",null,null,null,null,null,null,null,null,null,null,null,null,null,null,null,null,null,null,null,null,null,null,"HERSTELLUNGKOSTEN Footer Result Title"]
["Absolut",null,{"$f":"$C$53+$C$62+$C$71+$C$80+$C$89","v":0}]
["Prozentuale Anteile",null,{"$f":"C$94/$C$94","v":{"$error":"#DIV/0!"}}]
[]
[]
[{"$error":"#REF!"}]
[]
["Material","Bezeichnung","Betrag in fakturierter Währung","Fakturierte Währung"]
[]
[]
["Halbfabrikate","Bezeichnung","Betrag in fakturierter Währung","Fakturierte Währung"]
[]
["etc."]

{"sheet":"1.21 Bauhauptgewerbe","index":2,"n_rows":123,"n_cols":26,"rows_kept":123,"cut":false,"hidden":true,"merged":[[46,0,46,1]]}
[]
["Selbstdeklaration Herkunft nach Art. 29 Abs. 1 BöB"]
["(Bauhauptgewerbe)"]
[]
[]
[]
["ERGEBNISSE"]
[]
["Angebotspreis: \nWährung und Betrag",{"$f":"B39","v":"CHF"},{"$f":"B38","v":0}]
["Länderanteile Herstellkosten in %",null,null,"Total"]
[]
["1. Preis, aufgeschlüsselt nach Länderanteilen"]
["a. Preisniveau index  BIP Land X"]
["b.  Preisniveau index BIP Schweiz"]
["c.  Umrechnungsfaktor (b:a)"]
["2. Preisniveaubereinigter Preis  (1*c)  '   "]
[]
[]
["ERGEBNISSE DRUCKEN "]
[]
[null,"Vor dem Drucken Anklicken zum Aktualisieren der Berechnung"]
[]
[null,"All Ihre gemachten Eingaben erscheinen auf dem Formular.",null," "]
[]
[null,"Nur der Ergebnisblock oben wird in das Formular übernommen."]
[]
[]
[]
[]
[]
[]
["ANGABEN ZUM ANGEBOT "]
[]
["Anbieter"]
["Kontaktperson"]
["Telefon"]
["E-Mail"]
["Angebotspreis"]
["Währung, in der Sie das Angebot eingereicht haben","CHF"]
[]
["ERMITTLUNG HERKUNFT",null,null,null,null,null,null,null,null,null,null,null,null,null,null,null,null,null,null,null,null,null,null,null,null,"ERMITTLUNG HERKUNFT Top Result Title"]
[]
[null,null,"TOTAL"]
[null,null,{"$f":"C$112/$C$112","v":{"$error":"#DIV/0!"}}]
["Wichtiger Hinweis:"]
["Bitte achten Sie darauf, dass Sie alle Eingaben in der gleichen Währung machen."]
[" Das kann in der Währung sein, in der Sie das Angebot eingereicht haben, oder aber auch in der Währung, in der Sie Ihre  Geschäftsbuchhaltung erstellen."]
["Material","Bezeichnung","Betrag","Herkunft",null,null,null,null,null,null,null,null,null,null,null,null,null,null,null,null,null,null,null,null,null,"Material header 1.21.1"]
["B-M1"]
["B-M2"]
["B-M3"]
[]
[null,"Material",{"$f":"SUM(C49:C52)","v":0},null,null,null,null,null,null,null,null,null,null,null,null,null,null,null,null,null,null,null,null,null,null,"Material footer 1.21.1"]
[null,"Länderanteile in Prozent"]
[null,"Länderanteile in Prozent aggregiert"]
[]
["- Baustellengemeinkosten (BGK) Material","Bezeichnung","in % der    Materialkosten","Herkunft",null,null,null,null,null,null,null,null,null,null,null,null,null,null,null,null,null,null,null,null,null,"- Baustellengemeinkosten (BGK) Material header 1.21.2"]
["B-MGK1"]
["B-MGK2"]
["B-MGK3"]
[]
[null,"Baustellengemeinkosten (BGK): Material",{"$f":"SUM(E62:L62)","v":0},null,null,null,null,null,null,null,null,null,null,null,null,null,null,null,null,null,null,null,null,null,null,"Baustellengemeinkosten (BGK): Material footer 1.21.2"]
[null,"Länderanteile in Prozent"]
[null,"Länderanteile in Prozent aggregiert"]
[]
["Lohn","Bezeichnung","Betrag","Herkunft",null,null,null,null,null,null,null,null,null,null,null,null,null,null,null,null,null,null,null,null,null,"Lohn header 1.21.3"]
["B-LK1"]
["B-LK2"]
["B-LK3"]
[]
[null,"Löhne",{"$f":"SUM(C67:C70)","v":0},null,null,null,null,null,null,null,null,null,null,null,null,null,null,null,null,null,null,null,null,null,null,"Löhne footer 1.21.3"]
[null,"Länderanteile in Prozent"]
[null,"Länderanteile in Prozent aggregiert"]
[]
["- Baustellengemeinkosten (BGK) Lohn","Bezeichnung","in % der Lohnkosten","Herkunft",null,null,null,null,null,null,null,null,null,null,null,null,null,null,null,null,null,null,null,null,null,"- Baustellengemeinkosten (BGK) Lohn header 1.21.4"]
["B-FGK1"]
["B-FGK2"]
["B-FGK3"]
[]
[null,"Baustellengemeinkosten (BGK) Lohn",{"$f":"SUM(E80:L80)","v":0},null,null,null,null,null,null,null,null,null,null,null,null,null,null,null,null,null,null,null,null,null,null,"Baustellengemeinkosten (BGK) Lohn footer 1.21.4"]
[null,"Länderanteile in Prozent"]
[null,"Länderanteile in Prozent aggregiert"]
[]
["Inventar","Bezeichnung","Betrag","Herkunft",null,null,null,null,null,null,null,null,null,null,null,null,null,null,null,null,null,null,null,null,null,"Inventar header 1.21.5"]
["B-I1"]
["B-I2"]
["B-I3"]
[]
[null,"Inventar",{"$f":"SUM(C85:C88)","v":0},null,null,null,null,null,null,null,null,null,{"$f":"SUM(E89:L89)","v":0},null,null,null,null,null,null,null,null,null,null,null,null,"Inventar footer 1.21.5"]
[null,"Länderanteile in Prozent",null,null,null,null,null,null,null,null,null,null,{"$f":"SUM(E90:L90)","v":0}]
[null,"Länderanteile in Prozent aggregiert",null,null,null,null,null,null,null,null,null,null,{"$f":"SUM(E91:L91)","v":0}]
[]
["- Baustellengemeinkosten (BGK) Inventar","Bezeichnung","in % der  Inventarkosten","Herkunft",null,null,null,null,null,null,null,null,null,null,null,null,null,null,null,null,null,null,null,null,null,"- Baustellengemeinkosten (BGK) Inventar header 1.21.6"]
["B-IGK1"]
["B-IGK2"]
["B-IGK3"]
[]
[null,"Baustellengemeinkosten (BGK) Inventar",{"$f":"SUM(E98:L98)","v":0},null,null,null,null,null,null,null,null,null,{"$f":"SUM(E98:L98)","v":0},null,null,null,null,null,null,null,null,null,null,null,null,"Baustellengemeinkosten (BGK) Inventar footer 1.21.6"]
[null,"Länderanteile in Prozent",null,null,null,null,null,null,null,null,null,null,{"$f":"SUM(E99:L99)","v":0}]
[null,"Länderanteile in Prozent aggregiert",null,null,null,null,null,null,null,null,null,null,{"$f":"SUM(E100:L100)","v":0}]
[]
["Fremdleistungen","Bezeichnung","Betrag","Herkunft",null,null,null,null,null,null,null,null,null,null,null,null,null,null,null,null,null,null,null,null,null,"Fremdleistungen und Lizenzen header 1.21.7"]
["B-F1"]
["B-F2"]
["B-F3"]
[]
[null,"Kosten Fremdleistungen",{"$f":"SUM(C103:C106)","v":0},null,null,null,null,null,null,null,null,null,{"$f":"SUM(E107:L107)","v":0},null,null,null,null,null,null,null,null,null,null,null,null,"Kosten Fremdleistungen und Lizenzen footer 1.21.7"]
[null,"Länderanteile in Prozent",null,null,null,null,null,null,null,null,null,null,{"$f":"SUM(E108:L108)","v":0}]
[null,"Länderanteile in Prozent aggregiert",null,null,null,null,null,null,null,null,null,null,{"$f":"SUM(E109:L109)","v":0}]
[]
["HERSTELLKOSTEN",null,"TOTAL",null,null,null,null,null,null,null,null,null,null,null,null,null,null,null,null,null,null,null,null,null,null,"HERSTELLUNGKOSTEN Footer Result Title"]
["Absolut",null,{"$f":"$C$53+$C$62+$C$71+$C$80+$C$89+$C$98+$C$107","v":0}]
["Prozentuale Anteile",null,{"$f":"C$112/$C$112","v":{"$error":"#DIV/0!"}}]
[]
[]
[{"$error":"#REF!"}]
[]
["Material","Bezeichnung","Betrag in fakturierter Währung","Fakturierte Währung"]
[]
[]
["Halbfabrikate","Bezeichnung","Betrag in fakturierter Währung","Fakturierte Währung"]
[]
["etc."]

{"sheet":"1.22 Baunebengewerbe","index":3,"n_rows":105,"n_cols":26,"rows_kept":105,"cut":false,"hidden":false,"merged":[[46,0,46,1]]}
[]
["Selbstdeklaration Herkunft nach Art. 29 Abs. 1 BöB"]
["(Baunebengewerbe)"]
[]
[]
[]
["ERGEBNISSE"]
[]
["Angebotspreis: \nWährung und Betrag",{"$f":"B39","v":"EUR"},{"$f":"B38","v":0}]
["Länderanteile Herstellkosten in %",null,null,"Total",null,null,null,null,null,null,null,null,null,null,null,null,null,null,null,null,null,null,null,null,null,"Länderanteile Herstellkosten in % first result table"]
[]
["1. Preis, aufgeschlüsselt nach Länderanteilen"]
["a. Preisniveau index BIP Land X"]
["b.  Preisniveau index BIP Schweiz"]
["c.  Umrechnungsfaktor (b:a)"]
["2. Preisniveaubereinigter Preis  (1*c)  ' "]
[]
[]
["ERGEBNISSE DRUCKEN "]
[]
[null,"Vor dem Drucken Anklicken zum Aktualisieren der Berechnung"]
[]
[null,"All Ihre gemachten Eingaben erscheinen auf dem Formular.",null," "]
[]
[null,"Nur der Ergebnisblock oben wird in das Formular übernommen."]
[]
[]
[]
[]
[]
[]
["ANGABEN ZUM ANGEBOT "]
[]
["Anbieter"]
["Kontaktperson",null,null,null,null,null,null,null,null,null,null,null,null,null,null,null,null,null,"<"]
["Telefon"]
["E-Mail"]
["Angebotspreis"]
["Währung, in der Sie das Angebot eingereicht haben","EUR"]
[]
["ERMITTLUNG HERKUNFT",null,null,null,null,null,null,null,null,null,null,null,null,null,null,null,null,null,null,null,null,null,null,null,null,"ERMITTLUNG HERKUNFT Top Result Title"]
[]
[]
[]
["Wichtiger Hinweis:"]
["Bitte achten Sie darauf, dass Sie alle Eingaben in der gleichen Währung machen."]
[" Das kann in der Währung sein, in der Sie das Angebot eingereicht haben, oder aber auch in der Währung, in der Sie Ihre  Geschäftsbuchhaltung erstellen."]
["Material-Einzelkosten (Rohmaterialien, Vorprodukte, Halbfabrikate)","Bezeichnung","Betrag","Herkunft",null,null,null,null,null,null,null,null,null,null,null,null,null,null,null,null,null,null,null,null,null,"Material-Einzelkosten (Rohmaterialien, Vorprodukte, Halbfabrikate) header 1.22.1"]
["BN-M1"]
["BN-M2"]
["BN-M3"]
[]
[null,"Material",{"$f":"SUM(C49:C52)","v":0},null,null,null,null,null,null,null,null,null,null,null,null,null,null,null,null,null,null,null,null,null,null,"Material footer 1.22.1"]
[null,"Länderanteile in Prozent"]
[null,"Länderanteile in Prozent aggregiert"]
[]
["- Materialgemeinkosten","Bezeichnung","in % der Materialkosten","Herkunft",null,null,null,null,null,null,null,null,null,null,null,null,null,null,null,null,null,null,null,null,null,"- Materialgemeinkosten header 1.22.2"]
["BN-MGK1"]
["BN-MGK2"]
["BN-MGK3"]
[]
[null,"Material-Gemeinkosten",{"$f":"SUM(E62:I62)","v":0},null,null,null,null,null,null,null,null,null,null,null,null,null,null,null,null,null,null,null,null,null,null,"Material-Gemeinkosten footer 1.22.2"]
[null,"Länderanteile in Prozent"]
[null,"Länderanteile in Prozent aggregiert"]
[]
["Fertigungs-Einzelkosten (ohne Fremdleistungen und Lizenzen)","Bezeichnung","Betrag","Herkunft",null,null,null,null,null,null,null,null,null,null,null,null,null,null,null,null,null,null,null,null,null,"Fertigungs-Einzelkosten (ohne Fremdleistungen und Lizenzen) header 1.22.3"]
["BN-LK1"]
["BN-LK2"]
["BN-LK3"]
[]
[null,"Fertigungs-Einzelkosten",{"$f":"SUM(C67:C70)","v":0},null,null,null,null,null,null,null,null,null,null,null,null,null,null,null,null,null,null,null,null,null,null,"Fertigungs-Einzelkosten footer 1.22.3"]
[null,"Länderanteile in Prozent"]
[null,"Länderanteile in Prozent aggregiert"]
[]
["- Fertigungs-Gemeinkosten","Bezeichnung","in % der Lohnkosten","Herkunft",null,null,null,null,null,null,null,null,null,null,null,null,null,null,null,null,null,null,null,null,null,"- Fertigungsgemeinkosten header 1.22.4"]
["BN-FGK1"]
["BN-FGK2"]
["BN-FGK3"]
[]
[null,"Fertigungsgemeinkosten",{"$f":"SUM(E80:I80)","v":0},null,null,null,null,null,null,null,null,null,null,null,null,null,null,null,null,null,null,null,null,null,null,"Fertigungsgemeinkosten footer 1.22.4"]
[null,"Länderanteile in Prozent"]
[null,"Länderanteile in Prozent aggregiert"]
[]
["Fremdleistungen","Bezeichnung","Betrag","Herkunft",null,null,null,null,null,null,null,null,null,null,null,null,null,null,null,null,null,null,null,null,null,"Fremdleistungen und Lizenzen header 1.22.5"]
["BN-F1"]
["BN-F2"]
["BN-F3"]
[]
[null,"Kosten Fremdleistungen",{"$f":"SUM(C85:C88)","v":0},null,null,null,null,null,null,null,null,null,null,null,null,null,null,null,null,null,null,null,null,null,null,"Kosten Fremdleistungen und Lizenzen footer 1.22.5"]
[null,"Länderanteile in Prozent"]
[null,"Länderanteile in Prozent aggregiert"]
[]
["HERSTELLKOSTEN",null,"TOTAL",null,null,null,null,null,null,null,null,null,null,null,null,null,null,null,null,null,null,null,null,null,null,"HERSTELLUNGKOSTEN Footer Result Title"]
["Absolut",null,{"$f":"$C$53+$C$62+$C$71+$C$80+$C$89","v":0}]
["Prozentuale Anteile",null,{"$f":"C$94/$C$94","v":{"$error":"#DIV/0!"}}]
[]
[]
[{"$error":"#REF!"}]
[]
["Material","Bezeichnung","Betrag in fakturierter Währung","Fakturierte Währung"]
[]
[]
["Halbfabrikate","Bezeichnung","Betrag in fakturierter Währung","Fakturierte Währung"]
[]
["etc."]

{"sheet":"1.3 Dienstleistung","index":4,"n_rows":96,"n_cols":26,"rows_kept":96,"cut":false,"hidden":true,"merged":[[46,0,46,1]]}
[]
["Selbstdeklaration Herkunft nach Art. 29 Abs. 1 BöB"]
["(Dienstleistung)"]
[]
[]
[]
["ERGEBNISSE"]
[]
["Angebotspreis: \nWährung und Betrag",{"$f":"B39","v":"CHF"},{"$f":"B38","v":0}]
["Länderanteile Herstellkosten in %",null,null,"Total",null,null,null,null,null,null,null,null,null,null,null,null,null,null,null,null,null,null,null,null,null,"Länderanteile Herstellkosten in % first result table"]
[]
["1. Preis, aufgeschlüsselt nach Länderanteilen"]
["a. Preisniveau index BIP Land X"]
["b.  Preisniveau index BIP Schweiz"]
["c.  Umrechnungsfaktor (b:a)"]
["2. Preisniveaubereinigter Preis  (1*c)  '"]
[]
[]
["ERGEBNISSE DRUCKEN "]
[]
[null,"Vor dem Drucken Anklicken zum Aktualisieren der Berechnung"]
[]
[null,"All Ihre gemachten Eingaben erscheinen auf dem Formular.",null," "]
[]
[null,"Nur der Ergebnisblock oben wird in das Formular übernommen."]
[]
[]
[]
[]
[]
[]
["ANGABEN ZUM ANGEBOT "]
[]
["Anbieter"]
["Kontaktperson",null,null,null,null,null,null,null,null,null,null,null,null,null,null,null,null,null,"<"]
["Telefon"]
["E-Mail"]
["Angebotspreis"]
["Währung, in der Sie das Angebot eingereicht haben","CHF"]
[]
["ERMITTLUNG HERKUNFT",null,null,null,null,null,null,null,null,null,null,null,null,null,null,null,null,null,null,null,null,null,null,null,null,"ERMITTLUNG HERKUNFT Top Result Title"]
[]
[null,null,"TOTAL"]
[null,null,{"$f":"C$85/$C$85","v":{"$error":"#DIV/0!"}}]
["Wichtiger Hinweis:"]
["Bitte achten Sie darauf, dass Sie alle Eingaben in der gleichen Währung machen."]
["Das kann in der Währung sein, in der Sie das Angebot eingereicht haben, oder aber auch in der Währung, in der Sie Ihre  Geschäftsbuchhaltung erstellen."]
["Material-Einzelkosten","Bezeichnung","Betrag","Herkunft",null,null,null,null,null,null,null,null,null,null,null,null,null,null,null,null,null,null,null,null,null,"Material-Einzelkosten header 1.3.1"]
["DL-M1"]
["DL-M2"]
["DL-M3"]
[]
[null,"Material-Einzelkosten",{"$f":"SUM(C49:C52)","v":0},null,null,null,null,null,null,null,null,null,null,null,null,null,null,null,null,null,null,null,null,null,null,"Material-Einzelkosten footer 1.3.1"]
[null,"Länderanteile in Prozent"]
[null,"Länderanteile in Prozent aggregiert"]
[]
["- Material-Gemeinkosten","Bezeichnung","in % der Materialkosten","Herkunft",null,null,null,null,null,null,null,null,null,null,null,null,null,null,null,null,null,null,null,null,null,"- Material-Gemeinkosten header 1.3.2"]
["DL-MGK1"]
["DL-MGK2"]
["DL-MGK3"]
[]
[null,"Material-Gemeinkosten",{"$f":"SUM(E62:H62)","v":0},null,null,null,null,null,null,null,null,null,null,null,null,null,null,null,null,null,null,null,null,null,null,"Material-Gemeinkosten footer 1.3.2"]
[null,"Länderanteile in Prozent"]
[null,"Länderanteile in Prozent aggregiert"]
[]
["Honorare ","Bezeichnung","Betrag","Herkunft",null,null,null,null,null,null,null,null,null,null,null,null,null,null,null,null,null,null,null,null,null,"Honorare (Lohnkosten brutto und Lohnebenkosten wie Spesen etc.) header 1.3.3"]
["DL-LK1"]
["DL-LK2"]
["DL-LK3"]
[]
[null,"Honorarkosten",{"$f":"SUM(C67:C70)","v":0},null,null,null,null,null,null,null,null,null,null,null,null,null,null,null,null,null,null,null,null,null,null,"Fertigungs-Einzelkosten footer 1.3.3"]
[null,"Länderanteile in Prozent"]
[null,"Länderanteile in Prozent aggregiert"]
[]
["Fremdleistungen und Lizenzen","Bezeichnung","Betrag","Herkunft",null,null,null,null,null,null,null,null,null,null,null,null,null,null,null,null,null,null,null,null,null,"Fremdleistungen und Lizenzen header 1.3.4"]
["DL-F1"]
["DL-F2"]
["DL-F3"]
[]
[null,"Kosten Fremdleistungen und Lizenzen",{"$f":"SUM(C76:C79)","v":0},null,null,null,null,null,null,null,null,null,null,null,null,null,null,null,null,null,null,null,null,null,null,"Kosten Fremdleistungen und Lizenzen footer 1.3.4"]
[null,"Länderanteile in Prozent"]
[null,"Länderanteile in Prozent aggregiert"]
[]
["HERSTELLKOSTEN",null,"TOTAL",null,null,null,null,null,null,null,null,null,null,null,null,null,null,null,null,null,null,null,null,null,null,"HERSTELLUNGKOSTEN Footer Result Title"]
["Absolut",null,{"$f":"$C$53+$C$62+$C$71+$C$80","v":0}]
["Prozentuale Anteile",null,{"$f":"C$85/$C$85","v":{"$error":"#DIV/0!"}}]
[]
[]
[{"$error":"#REF!"}]
[]
["Material","Bezeichnung","Betrag in fakturierter Währung","Fakturierte Währung"]
[]
[]
["Halbfabrikate","Bezeichnung","Betrag in fakturierter Währung","Fakturierte Währung"]
[]
["etc."]

{"sheet":"1.4 Reiner Handel","index":5,"n_rows":79,"n_cols":26,"rows_kept":79,"cut":false,"hidden":true,"merged":[[46,0,46,1]]}
[]
["Selbstdeklaration Herkunft nach Art. 29 Abs. 1 BöB"]
["(Reiner Handel)"]
[]
[]
[]
["ERGEBNISSE"]
[]
["Angebotspreis: \nWährung und Betrag",{"$f":"B39","v":"CHF"},{"$f":"B38","v":0}]
["Länderanteile Herstellkosten in %",null,null,"Total"]
[null,null,null,null,null,null,null,{"$f":"B11+C11+D11+E11","v":0}]
["1. Preis, aufgeschlüsselt nach Länderanteilen",null,null,null,null,null,null,{"$f":"B12+C12+D12+E12","v":0}]
["a. Preisniveau index BIP Land X"]
["b.  Preisniveau index BIP Schweiz"]
["c.  Umrechnungsfaktor (b:a)"]
["2. Preisniveaubereinigter Preis  (1*c)  '",null,null,null,null,null,null,{"$f":"B16+C16+D16+E16","v":0}]
[]
[]
["ERGEBNISSE DRUCKEN "]
[]
[null,"Vor dem Drucken Anklicken zum Aktualisieren der Berechnung"]
[]
[null,"All Ihre gemachten Eingaben erscheinen auf dem Formular.",null," "]
[]
[null,"Nur der Ergebnisblock oben wird in das Formular übernommen."]
[]
[]
[]
[]
[]
[]
["ANGABEN ZUM ANGEBOT "]
[]
["Anbieter"]
["Kontaktperson"]
["Telefon"]
["E-Mail"]
["Angebotspreis"]
["Währung, in der Sie das Angebot eingereicht haben","CHF"]
[]
["ERMITTLUNG HERKUNFT",null,null,null,null,null,null,null,null,null,null,null,null,null,null,null,null,null,null,null,null,null,null,null,null,"ERMITTLUNG HERKUNFT Top Result Title"]
[]
[]
[null,null,null,null,null,null,null,null,{"$f":"SUM(E44:H44)","v":0}]
["Wichtiger Hinweis:"]
["Bitte achten Sie darauf, dass Sie alle Eingaben in der gleichen Währung machen."]
["Das kann in der Währung sein, in der Sie das Angebot eingereicht haben, oder aber auch in der Währung, in der Sie Ihre  Geschäftsbuchhaltung erstellen."]
["Materialeinkauf","Bezeichnung","Betrag","Herkunft",null,null,null,null,null,null,null,null,null,null,null,null,null,null,null,null,null,null,null,null,null,"Material-Einzelkosten header 1.4.1"]
["H-M1"]
["H-M2"]
["H-M3"]
[]
[null,"Material-Einzelkosten",{"$f":"SUM(C49:C52)","v":0},null,null,null,null,null,{"$f":"SUM(E53:H53)","v":0},null,null,null,null,null,null,null,null,null,null,null,null,null,null,null,null,"Material-Einzelkosten footer 1.4.1"]
[null,"Länderanteile in Prozent",null,null,null,null,null,null,{"$f":"SUM(E54:H54)","v":0}]
[null,"Länderanteile in Prozent aggregiert",null,null,null,null,null,null,{"$f":"SUM(E55:H55)","v":0}]
[]
["Materialeinkaufs-Gemeinkosten","Bezeichnung","in % der Materialkosten","Herkunft",null,null,null,null,null,null,null,null,null,null,null,null,null,null,null,null,null,null,null,null,null,"Material-Gemeinkosten header 1.4.2"]
["H-MGK1"]
["H-MGK2"]
["H-MGK3"]
["H-MGK4"]
[]
[null,"Material-Gemeinkosten",{"$f":"SUM(E63:H63)","v":0},null,null,null,null,null,{"$f":"SUM(E63:H63)","v":0},null,null,null,null,null,null,null,null,null,null,null,null,null,null,null,null,"Material-Gemeinkosten footer 1.4.2"]
[null,"Länderanteile in Prozent",null,null,null,null,null,null,{"$f":"SUM(E64:H64)","v":0}]
[null,"Länderanteile in Prozent aggregiert",null,null,null,null,null,null,{"$f":"SUM(E65:H65)","v":0}]
[]
["HERSTELLKOSTEN",null,"TOTAL",null,null,null,null,null,null,null,null,null,null,null,null,null,null,null,null,null,null,null,null,null,null,"HERSTELLUNGKOSTEN Footer Result Title"]
["Absolut",null,{"$f":"$C$53+$C$63","v":0},null,null,null,null,null,{"$f":"SUM(E68:H68)","v":0}]
["Prozentuale Anteile",null,{"$f":"C$68/$C$68","v":{"$error":"#DIV/0!"}},null,null,null,null,null,{"$f":"SUM(E69:H69)","v":0}]
[]
[]
[{"$error":"#REF!"}]
[]
["Material","Bezeichnung","Betrag in fakturierter Währung","Fakturierte Währung"]
[]
[]
["Halbfabrikate","Bezeichnung","Betrag in fakturierter Währung","Fakturierte Währung"]
[]
["etc."]

{"sheet":"1.5 IT-Leistungen","index":6,"n_rows":96,"n_cols":26,"rows_kept":96,"cut":false,"hidden":true,"merged":[[46,0,46,1]]}
[]
["Selbstdeklaration Herkunft nach Art. 29 Abs. 1 BöB"]
["(IT-Leistungen)"]
["`"]
[]
[]
["ERGEBNISSE"]
[]
["Angebotspreis: \nWährung und Betrag",{"$f":"B39","v":"CHF"},{"$f":"B38","v":0}]
["Länderanteile Herstellkosten in %",null,null,"Total"]
[]
["1. Preis, aufgeschlüsselt nach Länderanteilen"]
["a. Preisniveau index BIP Land X"]
["b.  Preisniveau index BIP Schweiz"]
["c.  Umrechnungsfaktor (b:a)"]
["2. Preisniveaubereinigter Preis  (1*c)  '"]
[]
[]
["ERGEBNISSE DRUCKEN "]
[]
[null,"Vor dem Drucken Anklicken zum Aktualisieren der Berechnung"]
[]
[null,"All Ihre gemachten Eingaben erscheinen auf dem Formular.",null," "]
[]
[null,"Nur der Ergebnisblock oben wird in das Formular übernommen."]
[]
[]
[]
[]
[]
[]
["ANGABEN ZUM ANGEBOT "]
[]
["Anbieter"]
["Kontaktperson"]
["Telefon"]
["E-Mail"]
["Angebotspreis"]
["Währung, in der Sie das Angebot eingereicht haben","CHF"]
[]
["ERMITTLUNG HERKUNFT",null,null,null,null,null,null,null,null,null,null,null,null,null,null,null,null,null,null,null,null,null,null,null,null,"ERMITTLUNG HERKUNFT Top Result Title"]
[]
[]
[]
["Wichtiger Hinweis:"]
["Bitte achten Sie darauf, dass Sie alle Eingaben in der gleichen Währung machen."]
["Das kann in der Währung sein, in der Sie das Angebot eingereicht haben, oder aber auch in der Währung, in der Sie Ihre  Geschäftsbuchhaltung erstellen."]
["Material-Einzelkosten","Bezeichnung","Betrag","Herkunft",null,null,null,null,null,null,null,null,null,null,null,null,null,null,null,null,null,null,null,null,null,"Material-Einzelkosten header 1.5.1"]
["IT-M1"]
["IT-M2"]
["IT-M3"]
[]
[null,"Material-Einzelkosten",{"$f":"SUM(C49:C52)","v":0},null,null,null,null,null,null,null,null,null,null,null,null,null,null,null,null,null,null,null,null,null,null,"Material-Einzelkosten footer 1.5.1"]
[null,"Länderanteile in Prozent"]
[null,"Länderanteile in Prozent aggregiert"]
[]
["- Material-Gemeinkosten","Bezeichnung","in % der Materialkosten","Herkunft",null,null,null,null,null,null,null,null,null,null,null,null,null,null,null,null,null,null,null,null,null,"- Material-Gemeinkosten header 1.5.2"]
["IT-MGK1"]
["IT-MGK2"]
["IT-MGK3"]
[]
[null,"Material-Gemeinkosten",{"$f":"SUM(E62:I62)","v":0},null,null,null,null,null,null,null,null,null,null,null,null,null,null,null,null,null,null,null,null,null,null,"Material-Gemeinkosten footer 1.5.2"]
[null,"Länderanteile in Prozent"]
[null,"Länderanteile in Prozent aggregiert"]
[]
["Honorare ","Bezeichnung","Betrag","Herkunft",null,null,null,null,null,null,null,null,null,null,null,null,null,null,null,null,null,null,null,null,null,"Honorare (Lohnkosten brutto und Lohnebenkosten wie Spesen etc.) header 1.5.3"]
["IT-LK1"]
["IT-LK2"]
["IT-LK3"]
[]
[null,"Fertigungs-Einzelkosten",{"$f":"SUM(C67:C70)","v":0},null,null,null,null,null,null,null,null,null,null,null,null,null,null,null,null,null,null,null,null,null,null,"Fertigungs-Einzelkosten footer 1.5.3"]
[null,"Länderanteile in Prozent"]
[null,"Länderanteile in Prozent aggregiert"]
[]
["Fremdleistungen, Lizenzen & ICloud-Lösungen","Bezeichnung","Betrag","Herkunft",null,null,null,null,null,null,null,null,null,null,null,null,null,null,null,null,null,null,null,null,null,"Fremdleistungen und Lizenzen header 1.5.4"]
["IT-F1"]
["IT-F2"]
["IT-F3"]
[]
[null,"Kosten Fremdleistungen und Lizenzen",{"$f":"SUM(C76:C79)","v":0},null,null,null,null,null,null,null,null,null,null,null,null,null,null,null,null,null,null,null,null,null,null,"Kosten Fremdleistungen und Lizenzen footer 1.5.4"]
[null,"Länderanteile in Prozent"]
[null,"Länderanteile in Prozent aggregiert"]
[]
["HERSTELLKOSTEN",null,"TOTAL",null,null,null,null,null,null,null,null,null,null,null,null,null,null,null,null,null,null,null,null,null,null,"HERSTELLUNGKOSTEN Footer Result Title"]
["Absolut",null,{"$f":"$C$53+$C$62+$C$71+$C$80","v":0}]
["Prozentuale Anteile",null,{"$f":"C$85/$C$85","v":{"$error":"#DIV/0!"}}]
[]
[]
[{"$error":"#REF!"}]
[]
["Material","Bezeichnung","Betrag in fakturierter Währung",{"$f":"SUM(D85:D90)","v":0}]
[null,null,null,{"$f":"$D$91/$C$91","v":{"$error":"#VALUE!"}}]
[null,null,null,{"$f":"(D58+D67+#REF!+D91)/(C58+C67+#REF!+C91)","v":{"$error":"#REF!"}}]
["Halbfabrikate","Bezeichnung","Betrag in fakturierter Währung","Fakturierte Währung"]
[]
["etc."]

{"sheet":"Beispiel","index":7,"n_rows":1,"n_cols":1,"rows_kept":1,"cut":false,"hidden":false,"merged":[]}
["BEISPIEL / MUSTER: BESCHAFFUNG KOMMUNALFAHRZEUG"]

{"sheet":"2 Stammdaten","index":8,"n_rows":198,"n_cols":10,"rows_kept":198,"cut":false,"hidden":true,"merged":[]}
["Region / Land","Region / Land dt.","Region / Land fr.","Region / Land it.","Preisniveauindex BIP 2017","Kaufkraftparitäten 2017","Nummerierung für Pulldown-Menüs",null,"Fakturiere Währungen für pulldown-Menue","Material-GK"]
["Switzerland","Schweiz",null,null,179.815,null,1]
["East Asia & Pacific (ICP)","Ferner Osten & Pazifik",null,null,96.353999999999999,null,0,null,"CHF","Einkauf"]
["Australia","Australien",null,null,168.48099999999999,null,null,null,"EUR","Lager"]
["Brunei Darussalam","Brunei",null,null,70.25,null,null,null,"USD","Innerbetrieblicher Transport"]
["Cambodia","Kambodscha",null,null,52.883000000000003,null,null,null,null,"Qualitätssicherung Material"]
["China","China",null,null,92.834000000000003]
["Fiji","Fija-inseln",null,null,68.132000000000005]
["Hong Kong SAR, China","Honkong",null,null,115.68]
["Indonesia","Indonesien",null,null,52.627000000000002]
["Japan","Japan",null,null,140.89400000000001]
["Korea, Rep.","Korea",null,null,115.64400000000001]
["Lao PDR","Laos",null,null,50.084000000000003]
["Malaysia","Malaisia",null,null,57.707000000000001]
["Mongolia","Mongolei",null,null,48.648000000000003]
["Myanmar","Myanmar",null,null,40.427]
["New Zealand","Neuseeland",null,null,154.87100000000001]
["Philippines","Philippenen",null,null,57.677]
["Singapore","Singapur",null,null,96.216999999999999]
["Taiwan, China","Taiwan, China",null,null,77.492999999999995]
["Thailand","Thailand",null,null,56.756]
["Vietnam","Vietnam",null,null,49.578000000000003]
["Europe & Central Asia (ICP)","Europa & Zentralasien",null,null,104.404,null,0]
["Albania","Albanien",null,null,52.070999999999998]
["Armenia","Armenien",null,null,48.456000000000003]
["Austria","Österreich",null,null,130.51599999999999]
["Azerbaijan","Aserbeidschan",null,null,44.043999999999997]
["Belarus","Belarus",null,null,47.280999999999999]
["Belgium","Belgien",null,null,130.941]
["Bosnia and Herzegovina","Bosnien-Herzogovina",null,null,58.582999999999998]
["Bulgaria","Bulgarien",null,null,58.398000000000003]
["Croatia","Kroatien",null,null,75.527000000000001]
["Cyprus","Zypern",null,null,104.179]
["Czech Republic","Tschechien",null,null,79.655000000000001]
["Denmark","Dänemark",null,null,156.05600000000001]
["Estonia","Estland",null,null,90.406999999999996]
["Finland","Finnland",null,null,146.29300000000001]
["France","Frankreich",null,null,129.84899999999999,null,2]
["Georgia","Georgien",null,null,48.081000000000003]
["Germany","Deutschland",null,null,125.46599999999999,null,2]
["Greece","Griechenland",null,null,97.596000000000004]
["Hungary","Ungarn",null,null,73.623999999999995]
["Iceland","Island",null,null,192.72499999999999]
["Ireland","Irland",null,null,134.02799999999999]
["Italy","Italien",null,null,116.312,null,2]
["Kazakhstan","Kasachstan",null,null,55.78]
["Kyrgyzstan","Kirgisistan",null,null,36.982999999999997]
["Latvia","Lettland",null,null,82.051000000000002]
["Lithuania","Littauen",null,null,74.861999999999995]
["Luxembourg","Luxemburg",null,null,143.065]
["Moldova","Moldawien",null,null,45.195999999999998]
["Montenegro","Montenegro",null,null,59.392000000000003]
["Netherlands","Niederlande",null,null,131.89099999999999]
["North Macedonia","Mazedonien",null,null,52.396000000000001]
["Norway","Norwegen",null,null,180.22399999999999]
["Poland","Polen",null,null,69.143000000000001]
["Portugal","Portugal",null,null,97.411000000000001]
["Romania","Rumänien",null,null,59.494999999999997]
["Russian Federation","Russland",null,null,61.820999999999998]
["Serbia","Serbien",null,null,56.960999999999999]
["Slovakia","Slowakei",null,null,85.177999999999997]
["Slovenia","Slowenien",null,null,96.162999999999997]
["Spain","Spanien",null,null,106.752]
["Sweden","Schweden",null,null,153.31899999999999]
["Tajikistan","Tadschikistan",null,null,39.125999999999998]
["Turkey","Türkei",null,null,56.444000000000003]
["Ukraine","Ukraine",null,null,33.36]
["United Kingdom","Grossbritannien",null,null,131.82400000000001]
["Latin America & Caribbean (ICP)","Lateinamerika & Pazifik",null,null,85.802000000000007,null,0]
["Anguilla","Anguilla",null,null,127.446]
["Antigua and Barbuda","Antigua und Barbuda",null,null,116.28100000000001]
["Argentina","Argentinien",null,null,92.869]
["Aruba","Aruba",null,null,113.163]
["Bahamas, The","Bahamas",null,null,135.18299999999999]
["Barbados","Barbados",null,null,165.191]
["Belize","Belize",null,null,103.108]
["Bolivia","Bolivien",null,null,59.231999999999999]
["Bonaire","Bonaire",null,null,".."]
["Brazil","Brasilien",null,null,102.515]
["Cayman Islands","Cayman Islands",null,null,175.24600000000001]
["Chile","Chile",null,null,95.058000000000007]
["Colombia","Kolumbien",null,null,66.808999999999997]
["Costa Rica","Costa Rica",null,null,92.704999999999998]
["Curaçao","Curaçao",null,null,114.542]
["Dominica","Dominica",null,null,96.51]
["Dominican Republic","Dominikanische Republii",null,null,68.185000000000002]
["Ecuador","Ecuador",null,null,80.206000000000003]
["El Salvador","El Salvador",null,null,69.364999999999995]
["Grenada","Grenada",null,null,93.887]
["Guyana","Guyana",null,null,74.459999999999994]
["Haiti","Haiti",null,null,67.106999999999999]
["Honduras","Honduras",null,null,65.876999999999995]
["Jamaica","Jamaica",null,null,79.203000000000003]
["Mexico","Mexiko",null,null,70.290999999999997]
["Montserrat","Monserrat",null,null,99.447999999999993]
["Nicaragua","Nicaragua",null,null,53.930999999999997]
["Panama","Panama",null,null,74.605000000000004]
["Paraguay","Paraguay",null,null,68.331000000000003]
["Peru","Peru",null,null,80.478999999999999]
["Sint Maarten","Sint Maarten",null,null,116.169]
["St. Kitts and Nevis","St.Kitts und Nevis",null,null,113.29600000000001]
["St. Lucia","St. Lucia",null,null,110.852]
["St. Vincent and the Grenadines","St. Vicent und die Grenadinen",null,null,88.338999999999999]
["Suriname","Suriname",null,null,51.212000000000003]
["Trinidad and Tobago","Trinidad und Tobago",null,null,92.076999999999998]
["Turks and Caicos Islands","Turks- und Caicosinseln",null,null,152.654]
["Uruguay","Uruguay",null,null,121.819]
["Virgin Islands, British","Virgin Islands, British",null,null,160.28299999999999]
["Middle East & North Africa (ICP)","Naher Osten & Nordafrika",null,null,65.213999999999999,null,0]
["Algeria","Algerien",null,null,52.51]
["Bahrain","Bahrain",null,null,74.632000000000005]
["Djibouti","Djibouti",null,null,89.466999999999999]
["Egypt, Arab Rep.","Aegypten",null,null,27.45]
["Iran, Islamic Rep.","Iran",null,null,58.953000000000003]
["Iraq","Irak",null,null,66.956000000000003]
["Israel","Israel",null,null,156.03100000000001]
["Jordan","Jordan",null,null,63.616]
["Kuwait","Kuweit",null,null,87.747]
["Malta","Malta",null,null,97.918999999999997]
["Morocco","Marokko",null,null,62.262999999999998]
["Oman","Oman",null,null,78.022999999999996]
["Qatar","Qatar",null,null,96.388999999999996]
["Saudi Arabia","Saudiarabien",null,null,65.947000000000003]
["Tunisia","Tunesien",null,null,49.226999999999997]
["United Arab Emirates","Vereinigte Arabische Emirate",null,null,90.727999999999994]
["West Bank and Gaza","West Bank und Gaza",null,null,84.801000000000002]
["North America (ICP)","Nordamerika",null,null,149.083,null,0]
["Bermuda","Bermuda",null,null,204.91900000000001]
["Canada","Kanada",null,null,139.221]
["United States","USA",null,null,149.96899999999999]
["South Asia (ICP)","Südasien",null,null,48.156999999999996,null,0]
["Bangladesh","Bangladesh",null,null,55.444000000000003]
["Bhutan","Bhutan",null,null,44.234999999999999]
["India","Indien",null,null,47.55]
["Maldives","Malediven",null,null,79.539000000000001]
["Nepal","Nepal",null,null,44.82]
["Pakistan","Pakistan",null,null,47.767000000000003]
["Sri Lanka","Sri Lanka",null,null,48.587000000000003]
["Sub-Saharan Africa (ICP)","Subsahra-Afrika",null,null,62.088000000000001,null,0]
["Angola","Angola",null,null,84.016999999999996]
["Benin","Benin",null,null,55.850999999999999]
["Botswana","Botswana",null,null,68.608999999999995]
["Burkina Faso","Burkina Faso",null,null,53.784999999999997]
["Burundi","Burundi",null,null,56.802]
["Cameroon","Kamerun",null,null,59.98]
["Cabo Verde","Kapverden",null,null,74.337000000000003]
["Central African Republic","Zentralafrikanische Republik",null,null,73.900000000000006]
["Chad","Tschad",null,null,62.776000000000003]
["Comoros","Komoren",null,null,65.311000000000007]
["Congo, Dem. Rep.","Kongo, demokratische Republik",null,null,66.093000000000004]
["Congo, Rep.","Konto, Republik",null,null,76.694000000000003]
["Côte d'Ivoire","Elfenbeinküste",null,null,65.376000000000005]
["Equatorial Guinea","Äquatorialguinea",null,null,64.137]
["Eswatini","Eswatini",null,null,69.796000000000006]
["Ethiopia","Äthiopien",null,null,53.542999999999999]
["Gabon","Gabun",null,null,72.08]
["Gambia, The","Gambia",null,null,49.186]
["Ghana","Ghana",null,null,60.804000000000002]
["Guinea","Guinea",null,null,52.850999999999999]
["Guinea-Bissau","Gunea-Bissau",null,null,57.39]
["Kenya","Kenia",null,null,58.277000000000001]
["Lesotho","Lesotho",null,null,61.926000000000002]
["Liberia","Liberia",null,null,69.135000000000005]
["Madagascar","Madagaskar",null,null,48.773000000000003]
["Malawi","Malawi",null,null,51.561]
["Mali","Mali",null,null,55.267000000000003]
["Mauritania","Mauretanien",null,null,46.673000000000002]
["Mauritius","Mauritius",null,null,73.424999999999997]
["Mozambique","Mosambik",null,null,53.906999999999996]
["Namibia","Namibia",null,null,79.085999999999999]
["Niger","Niger",null,null,66.590999999999994]
["Nigeria","Nigeria",null,null,56.878999999999998]
["Rwanda","Ruanda",null,null,58.637]
["São Tomé and Principe","São Tomé und Príncipe",null,null,69.36]
["Senegal","Senegal",null,null,63.582999999999998]
["Seychelles","Seychellen",null,null,87.563000000000002]
["Sierra Leone","Sierra Leone",null,null,45.593000000000004]
["South Africa","Südafrika",null,null,72.283000000000001]
["Sudan","Sudan",null,null,34.411000000000001]
["Tanzania","Tansania",null,null,59.552999999999997]
["Togo","Togo",null,null,61.762999999999998]
["Uganda","Uganda",null,null,52.765999999999998]
["Zambia","Sambia",null,null,66.049000000000007]
["Zimbabwe","Simbabwe",null,null,76.67]
["WORLD",null,null,null,100,null,0]
[]
[]
["Divers","Diverse",null,null,{"$f":"E2","v":179.815},null,3]
[]
["IT-Cloud","IT-Cloud",null,null,{"$f":"E2","v":179.815},null,4]
[]
[]
[]
[]
["Classification: Price level index (world = 100)"]
["Data from database:ICP 2017"]
["Last Updated:07/10/2020"]
["Link: https://www.worldbank.org/en/programs/icp"]

{"sheet":"commentindicator","index":9,"n_rows":0,"n_cols":0,"rows_kept":0,"cut":false,"hidden":true,"merged":[]}

{"sheet":"Formular 1 Lang","index":10,"n_rows":34,"n_cols":2,"rows_kept":34,"cut":false,"hidden":true,"merged":[[23,1,23,3]]}
["Selbstdeklaration Herkunft nach Art. 29 Abs. 1 BöB"]
["Wir bestätigen hiermit, dass wir das Formular"]
[]
[{"$f":"'[2]1.1 Lieferung'!A2","v":"Selbstdeklaration Herkunft nach Art. 29 Abs. 1 BöB"}]
[]
["wahrheitsgetreu und vollständig  ausgefüllt haben."]
[]
[]
[]
["Ergebnisse"]
[]
[]
[]
[]
[]
[]
[]
[]
[]
[]
[]
[]
[]
["Firma",1]
["Kontaktsperson",2]
["Telefon",3]
["E-Mail",3]
[]
[]
["Datum",{"$f":"TODAY()","v":"2021-05-03"}]
[]
["Unterschrift"]
[]
["Name und Funktion"]

{"sheet":"Formular 2 Kurz","index":11,"n_rows":32,"n_cols":2,"rows_kept":32,"cut":false,"hidden":true,"merged":[[23,1,23,3]]}
["Selbstdeklaration Herkunft nach Art. 29 Abs. 1 BöB"]
["Wir bestätigen hiermit, dass wir das Formular"]
[]
[{"$f":"'[2]1.1 Lieferung'!A2","v":"Selbstdeklaration Herkunft nach Art. 29 Abs. 1 BöB"}]
[]
["wahrheitsgetreu und vollständig  ausgefüllt haben. Auf begründeten Wunsch der Beschaffungsstelle hin sind wir bereit, auch die Langversion des Formulars einzureichen."]
[]
[]
[]
["Ergebnisse"]
[]
[]
[]
[]
[]
[]
[]
[]
[]
[]
[]
[]
[]
["Firma"]
["Kontaktsperson"]
[]
[]
["Datum",{"$f":"TODAY()","v":"2021-05-03"}]
[]
["Unterschrift"]
[]
["Name und Funktion"]

{"sheet":"land","index":12,"n_rows":179,"n_cols":2,"rows_kept":179,"cut":false,"hidden":true,"merged":[]}
["Region / Land dt.","Nummerierung für Pulldown-Menüs"]
["Schweiz",1]
["Deutschland",2]
["Frankreich",2]
["Italien",2]
["Diverse",3]
["IT-Cloud",4]
["Aegypten"]
["Albanien"]
["Algerien"]
["Angola"]
["Anguilla"]
["Antigua und Barbuda"]
["Äquatorialguinea"]
["Argentinien"]
["Armenien"]
["Aruba"]
["Aserbeidschan"]
["Äthiopien"]
["Australien"]
["Bahamas"]
["Bahrain"]
["Bangladesh"]
["Barbados"]
["Belarus"]
["Belgien"]
["Belize"]
["Benin"]
["Bermuda"]
["Bhutan"]
["Bolivien"]
["Bonaire"]
["Bosnien-Herzogovina"]
["Botswana"]
["Brasilien"]
["Brunei"]
["Bulgarien"]
["Burkina Faso"]
["Burundi"]
["Cayman Islands"]
["Chile"]
["China"]
["Costa Rica"]
["Curaçao"]
["Dänemark"]
["Djibouti"]
["Dominica"]
["Dominikanische Republii"]
["Ecuador"]
["El Salvador"]
["Elfenbeinküste"]
["Estland"]
["Eswatini"]
["Fija-inseln"]
["Finnland"]
["Gabun"]
["Gambia"]
["Georgien"]
["Ghana"]
["Grenada"]
["Griechenland"]
["Grossbritannien"]
["Guinea"]
["Gunea-Bissau"]
["Guyana"]
["Haiti"]
["Honduras"]
["Honkong"]
["Indien"]
["Indonesien"]
["Irak"]
["Iran"]
["Irland"]
["Island"]
["Israel"]
["Jamaica"]
["Japan"]
["Jordan"]
["Kambodscha"]
["Kamerun"]
["Kanada"]
["Kapverden"]
["Kasachstan"]
["Kenia"]
["Kirgisistan"]
["Kolumbien"]
["Komoren"]
["Kongo, demokratische Republik"]
["Konto, Republik"]
["Korea"]
["Kroatien"]
["Kuweit"]
["Laos"]
["Lesotho"]
["Lettland"]
["Liberia"]
["Littauen"]
["Luxemburg"]
["Madagaskar"]
["Malaisia"]
["Malawi"]
["Malediven"]
["Mali"]
["Malta"]
["Marokko"]
["Mauretanien"]
["Mauritius"]
["Mazedonien"]
["Mexiko"]
["Moldawien"]
["Mongolei"]
["Monserrat"]
["Montenegro"]
["Mosambik"]
["Myanmar"]
["Namibia"]
["Nepal"]
["Neuseeland"]
["Nicaragua"]
["Niederlande"]
["Niger"]
["Nigeria"]
["Norwegen"]
["Oman"]
["Österreich"]
["Pakistan"]
["Panama"]
["Paraguay"]
["Peru"]
["Philippenen"]
["Polen"]
["Portugal"]
["Qatar"]
["Ruanda"]
["Rumänien"]
["Russland"]
["Sambia"]
["São Tomé und Príncipe"]
["Saudiarabien"]
["Schweden"]
["Senegal"]
["Serbien"]
["Seychellen"]
["Sierra Leone"]
["Simbabwe"]
["Singapur"]
["Sint Maarten"]
["Slowakei"]
["Slowenien"]
["Spanien"]
["Sri Lanka"]
["St. Lucia"]
["St. Vicent und die Grenadinen"]
["St.Kitts und Nevis"]
["Südafrika"]
["Sudan"]
["Suriname"]
["Tadschikistan"]
["Taiwan, China"]
["Tansania"]
["Thailand"]
["Togo"]
["Trinidad und Tobago"]
["Tschad"]
["Tschechien"]
["Tunesien"]
["Türkei"]
["Turks- und Caicosinseln"]
["Uganda"]
["Ukraine"]
["Ungarn"]
["Uruguay"]
["USA"]
["Vereinigte Arabische Emirate"]
["Vietnam"]
["Virgin Islands, British"]
["West Bank und Gaza"]
["Zentralafrikanische Republik"]
["Zypern"]